bitfinex/quotes_SOLUSD_20260119
["timestamp","ask_amount","ask_price","bid_price","bid_amount"]
[1768848470718,2.97934415,134.23,134.21,0.2]
[1768848470920,2.97934415,134.22,134.21,0.2]
[1768848471093,2.97934415,134.23,134.21,0.2]
[1768848471499,2.97934415,134.22,134.2,0.2]
[1768848471698,2.97934415,134.21,134.18,0.2]
[1768848471898,2.97934415,134.2,134.18,0.2]
[1768848472105,2.97934415,134.19,134.17,0.2]
[1768848472424,2.97934415,134.19,134.12,16.52]
[1768848472425,16.32,134.19,134.14,0.98842832]
[1768848472713,2.97934415,134.18,134.14,0.98842832]
[1768848473714,2.97934415,134.17,134.14,0.98842832]
[1768848474036,2.97934415,134.17,134.12,7.65584163]
[1768848474037,2.97934415,134.16,134.12,0.2]
[1768848474211,7.45434215,134.15,134.13,1.01318097]
[1768848474601,7.39442031,134.15,134.13,1.01318097]
[1768848475007,7.33442022,134.15,134.13,1.01318097]
[1768848475202,10.43334509,134.16,134.13,1.01318097]
[1768848475403,7.45318496,134.18,134.13,1.01318097]
[1768848475608,10.43252911,134.18,134.14,1.01318097]
[1768848476399,10.43252911,134.18,134.14,2.97934415]
[1768848476601,34.94662415,134.22,134.17,1.01318097]
[1768848476810,2.97934415,134.21,134.17,3.99252512]
[1768848477529,10.43035376,134.21,134.17,3.99252512]
[1768848478426,10.43035376,134.21,134.17,1.01318097]
[1768848480026,10.45038287,134.21,134.17,3.99252512]
[1768848480208,7.47103872,134.21,134.18,1.01318097]
[1768848480409,7.47067331,134.22,134.18,1.01318097]
[1768848480609,10.45001746,134.22,134.18,3.99252512]
[1768848480907,10.45001746,134.22,134.18,1.01318097]
[1768848481315,10.45001746,134.22,134.2,1.01318097]
[1768848481316,7.4506442,134.22,134.2,1.01318097]
[1768848482932,10.42998835,134.22,134.2,1.01318097]
[1768848483530,7.4506442,134.22,134.2,1.01318097]
[1768848484908,23.77013492,134.23,134.2,1.01318097]
[1768848485105,7.45013492,134.23,134.2,1.01318097]
[1768848485311,10.45207999,134.24,134.21,1.01318097]
[1768848485503,7.47273584,134.24,134.21,1.01318097]
[1768848486915,7.44952662,134.24,134.21,1.01318097]
[1768848488408,7.44952662,134.24,134.21,3.99252512]
[1768848490426,7.44952662,134.24,134.21,1.01318097]
[1768848492628,7.47689039,134.24,134.21,1.01318097]
[1768848492827,0.02736377,134.23,134.2,1.01318097]
[1768848493530,3.01330036,134.23,134.2,1.01318097]
[1768848493924,0.02736377,134.23,134.2,1.01318097]
[1768848495833,26.10247901,134.24,134.2,1.01318097]
[1768848496133,29.0884156,134.24,134.2,3.99911756]
[1768848496430,26.10247901,134.24,134.21,1.01318097]
[1768848497332,26.07288776,134.24,134.22,1.01318097]
[1768848498328,26.07288776,134.24,134.21,1.01318097]
[1768848498532,26.10355474,134.24,134.21,1.01318097]
[1768848499131,0.03119559,134.22,134.19,1.01318097]
[1768848501340,0.03119559,134.22,134.19,3.99911756]
[1768848504246,26.10712994,134.24,134.2,4.08288938]
[1768848504610,0.03424218,134.23,134.2,4.08288938]
[1768848506136,0.03424218,134.23,134.2,1.09695279]
[1768848508243,0.03424218,134.23,134.2,1.05587279]
[1768848520247,26.15599813,134.24,134.2,1.05587279]
[1768848520438,26.07288776,134.24,134.2,1.05587279]
[1768848520641,26.15648859,134.24,134.21,1.1058236]
[1768848521242,26.15648859,134.24,134.21,4.09176019]
[1768848521741,26.07288776,134.24,134.22,1.1058236]
[1768848524246,26.07288776,134.24,134.22,0.19616441]
[1768848528150,7.44952662,134.24,134.22,0.19616441]
[1768848548574,7.44952662,134.24,134.21,2.98593659]
[1768848550375,7.44952662,134.24,134.22,1.07081945]
[1768848550574,7.44952662,134.24,134.22,0.19380546]
[1768848550876,8.48092675,134.24,134.22,0.19380546]
[1768848555581,8.48092675,134.24,134.22,0.16380547]
[1768848556476,1.03140013,134.23,134.15,26.09019753]
[1768848556656,1.03140013,134.22,134.18,2.98512249]
[1768848557772,8.48233852,134.22,134.19,1.07081945]
[1768848560088,7.45093839,134.22,134.2,1.07081945]
[1768848561481,8.48233852,134.22,134.2,1.07081945]
[1768848562190,8.48233852,134.22,134.18,2.98512249]
[1768848562478,1.03140013,134.21,134.16,7.45355501]
[1768848562686,1.03140013,134.2,134.16,2.98512249]
[1768848562986,1.03140013,134.2,134.17,2.98512249]
[1768848563283,1.03140013,134.2,134.16,2.98512249]
[1768848563487,1.03140013,134.2,134.17,2.98512249]
[1768848564383,8.48321843,134.2,134.17,4.0720984]
[1768848565385,8.48321843,134.2,134.17,1.08697591]
[1768848565684,8.48321843,134.2,134.17,4.0720984]
[1768848566287,7.45127195,134.21,134.18,1.08697591]
[1768848566467,8.57287124,134.21,134.18,4.0720984]
[1768848568889,8.57287124,134.21,134.18,1.08697591]
[1768848576691,11.55799373,134.21,134.18,1.08697591]
[1768848580398,1.12159929,134.2,134.17,4.0720984]
[1768848580581,1.12159929,134.2,134.17,1.08697591]
[1768848580982,1.12159929,134.2,134.17,4.0720984]
[1768848581383,8.51450943,134.21,134.18,1.0659089]
[1768848588100,8.51393362,134.22,134.19,1.0659089]
[1768848588405,8.51393362,134.22,134.19,1.03590893]
[1768848590104,11.49905611,134.22,134.19,1.03590893]
[1768848590603,8.51393362,134.22,134.19,1.03590893]
[1768848591005,8.51393362,134.22,134.19,4.02103142]
[1768848591183,8.51393362,134.22,134.19,1.03590893]
[1768848597102,1.15700734,134.21,134.19,1.03590893]
[1768848597290,1.15700734,134.21,134.18,4.03416638]
[1768848598701,1.15700734,134.21,134.18,1.04904389]
[1768848598905,1.15700734,134.21,134.17,1.04904389]
[1768848599083,1.15700734,134.2,134.17,4.03416638]
[1768848599705,1.15700734,134.2,134.17,1.04904389]
[1768848600402,1.15700734,134.2,134.16,1.04904389]
[1768848600708,1.15700734,134.18,134.15,1.04904389]
[1768848600910,1.15700734,134.18,134.15,4.03416638]
[1768848601092,1.15700734,134.18,134.16,1.04904389]
[1768848601298,8.60926933,134.19,134.16,1.04904389]
[1768848601903,1.15700734,134.19,134.16,4.03416638]
[1768848603017,1.15700734,134.19,134.15,1.04904389]
[1768848603018,1.15700734,134.18,134.15,1.04904389]
[1768848603221,1.15700734,134.18,134.15,4.03416638]
[1768848603509,8.60975193,134.18,134.15,1.04904389]
[1768848603697,1.15700734,134.17,134.14,11.4887919]
[1768848604009,2.98512249,134.17,134.13,1.04904389]
[1768848604308,2.98512249,134.16,134.12,1.24904389]
[1768848604485,2.98512249,134.15,134.12,0.2]
[1768848605088,10.43969721,134.15,134.12,0.2]
[1768848605416,7.45457472,134.15,134.12,1.24904389]
[1768848605799,8.61158206,134.15,134.12,1.24904389]
[1768848607208,11.59670455,134.15,134.12,1.24904389]
[1768848607411,1.15700734,134.13,134.12,0.2]
[1768848609712,1.09700734,134.13,134.12,0.2]
[1768848611020,7.45513879,134.14,134.12,0.2]
[1768848611203,10.44026128,134.14,134.12,0.2]
[1768848611386,7.45513879,134.14,134.12,0.2]
[1768848611593,10.44026128,134.14,134.12,1.24904389]
[1768848611911,1.15700734,134.14,134.12,1.24904389]
[1768848612125,1.15700734,134.14,134.12,0.2]
[1768848612330,8.61150551,134.15,134.12,1.24904389]
[1768848612615,11.596628,134.15,134.12,1.24904389]
[1768848614923,11.60101021,134.15,134.12,1.24904389]
[1768848619505,8.61150551,134.15,134.12,1.24904389]
[1768848620018,1.15700734,134.17,134.14,4.03854859]
[1768848621516,8.61038692,134.17,134.14,4.03854859]
[1768848621726,8.61038692,134.17,134.14,1.04904389]
[1768848622733,7.45288123,134.18,134.16,1.073468]
[1768848623019,7.45235717,134.19,134.16,2.9895047]
[1768848624125,8.54269857,134.2,134.17,2.9895047]
[1768848624820,8.54269857,134.2,134.17,4.0629727]
[1768848627419,8.54213808,134.21,134.18,1.073468]
[1768848627630,8.54213808,134.21,134.18,4.0629727]
[1768848629222,8.54213808,134.21,134.19,1.073468]
[1768848629527,8.54213808,134.21,134.18,4.0629727]
[1768848630908,7.45124878,134.21,134.19,1.073468]
[1768848631109,8.54213808,134.21,134.18,2.9895047]
[1768848631628,8.54213808,134.21,134.17,10.44270003]
[1768848632919,24.86149194,134.22,134.18,2.9895047]
[1768848633229,24.86149194,134.22,134.19,1.073468]
[1768848633431,1.0908893,134.21,134.19,1.073468]
[1768848634427,1.0908893,134.2,134.17,4.0629727]
[1768848634630,1.0908893,134.2,134.17,1.073468]
[1768848635126,1.0908893,134.2,134.18,1.073468]
[1768848635517,8.5420843,134.21,134.18,1.073468]
[1768848635714,1.0908893,134.21,134.18,8.52612012]
[1768848635920,1.0908893,134.21,134.19,1.073468]
[1768848636635,1.0908893,134.21,134.19,1.04346802]
[1768848640737,8.60607278,134.22,134.19,1.04346802]
[1768848642541,1.15523448,134.21,134.19,1.04346802]
[1768848643940,8.60632184,134.21,134.18,1.16808733]
[1768848644618,1.15523448,134.21,134.18,1.16808733]
[1768848646044,1.15523448,134.21,134.19,1.16808733]
[1768848646244,1.15523448,134.21,134.19,1.13808734]
[1768848649843,1.15523448,134.21,134.19,1.10808734]
[1768848655949,1.10874048,134.22,134.2,1.14926678]
[1768848670166,1.10874048,134.21,134.19,1.14926678]
[1768848670758,1.10874048,134.21,134.17,10.44254369]
[1768848670968,1.10874048,134.21,134.18,1.14926678]
[1768848674665,1.10874048,134.21,134.18,4.13877148]
[1768848676870,1.10874048,134.21,134.18,4.13539059]
[1768848677677,1.10874048,134.21,134.18,1.14926678]
[1768848680969,8.55919716,134.22,134.19,1.14926678]
[1768848683968,1.17017198,134.21,134.19,1.14926678]
[1768848684575,8.62062866,134.22,134.19,1.14926678]
[1768848685780,7.45017612,134.23,134.19,4.13539059]
[1768848685975,7.45017612,134.23,134.2,1.10684961]
[1768848686167,8.6203481,134.23,134.2,1.10684961]
[1768848686576,1.17017198,134.22,134.2,1.10684961]
[1768848686778,1.17017198,134.22,134.19,1.10684961]
[1768848689671,1.17017198,134.22,134.19,4.09297342]
[1768848692686,1.17017198,134.22,134.19,1.10684961]
[1768848693695,1.17017198,134.22,134.19,4.09297342]
[1768848695289,1.17017198,134.22,134.19,11.54505682]
[1768848697900,1.17017198,134.22,134.19,8.55893301]
[1768848698099,1.17017198,134.22,134.19,11.54505682]
[1768848704474,1.17017198,134.22,134.19,4.09297342]
[1768848704791,1.17017198,134.22,134.19,1.10684961]
[1768848712435,1.17017198,134.22,134.19,4.09297342]
[1768848714040,1.17017198,134.22,134.19,1.10684961]
[1768848718138,1.17017198,134.22,134.19,8.55894066]
[1768848723240,1.17017198,134.22,134.19,8.55894066]
[1768848724545,1.17017198,134.22,134.19,11.54506447]
[1768848731847,1.17017198,134.22,134.19,8.55894066]
[1768848738749,8.6357685,134.23,134.2,1.17338443]
[1768848740448,1.18557525,134.22,134.19,1.17338443]
[1768848740631,1.18557525,134.22,134.18,8.62576862]
[1768848741149,1.18557525,134.21,134.17,8.62648006]
[1768848741754,4.17128094,134.2,134.17,1.17338443]
[1768848742052,1.18557525,134.2,134.17,1.17338443]
[1768848742754,1.18557525,134.2,134.17,8.62654656]
[1768848745268,1.18557525,134.2,134.15,18.63484783]
[1768848745269,8.63719394,134.2,134.15,18.63484783]
[1768848745566,1.16758479,134.17,134.14,8.58321456]
[1768848757984,1.16758479,134.17,134.14,1.12861598]
[1768848758483,4.15329048,134.17,134.14,1.12861598]
[1768848758665,1.16758479,134.17,134.13,11.56951274]
[1768848759284,1.16758479,134.16,134.13,1.12861598]
[1768848759464,1.16758479,134.16,134.12,11.77007943]
[1768848764784,1.16758479,134.16,134.12,10.64146345]
[1768848764999,1.16758479,134.16,134.13,1.17508851]
[1768848765369,1.16758479,134.16,134.13,4.1607942]
[1768848765673,1.16758479,134.16,134.14,1.17508851]
[1768848766172,1.18114813,134.17,134.14,1.17508851]
[1768848767193,1.18114813,134.18,134.16,1.17508851]
[1768848768190,1.18114813,134.18,134.15,4.1607942]
[1768848770203,1.18114813,134.18,134.15,11.61505032]
[1768848770589,1.18114813,134.18,134.16,1.17508851]
[1768848770795,11.61859139,134.2,134.16,4.1607942]
[1768848770991,7.45173757,134.2,134.16,4.1607942]
[1768848771289,1.18114813,134.19,134.16,4.1607942]
[1768848772376,1.18114813,134.19,134.16,1.17508851]
[1768848773002,1.18114813,134.19,134.16,8.62881861]
[1768848773201,1.18114813,134.19,134.16,11.6145243]
[1768848774788,1.17438299,134.2,134.17,1.18730016]
[1768848774985,1.17438299,134.2,134.17,4.17300585]
[1768848775186,8.6256221,134.21,134.18,1.18730016]
[1768848776774,1.17438299,134.21,134.19,1.18730016]
[1768848777178,1.17438299,134.21,134.18,8.63988592]
[1768848777505,1.17438299,134.21,134.18,11.62559161]
[1768848777796,1.17438299,134.21,134.15,18.63545294]
[1768848777797,1.17438299,134.21,134.17,4.17300585]
[1768848780303,1.17438299,134.21,134.18,1.18730016]
[1768848780588,1.17438299,134.21,134.18,4.17300585]
[1768848783610,1.17438299,134.21,134.18,11.62561351]
[1768848784010,1.17438299,134.22,134.19,4.17300585]
[1768848784197,1.17438299,134.22,134.19,11.62491639]
[1768848785013,1.17438299,134.23,134.2,4.17300585]
[1768848785405,1.17438299,134.23,134.2,1.18730016]
[1768848785596,1.17438299,134.23,134.2,4.17300585]
[1768848786197,1.17438299,134.23,134.2,2.98570569]
[1768848789096,0.1,134.33,134.21,1.18730016]
[1768848789414,2.98570569,134.29,134.24,4.17300585]
[1768848790408,2.98570569,134.29,134.25,2.98570569]
[1768848790409,7.44657085,134.29,134.25,2.98570569]
[1768848791015,2.98570569,134.26,134.22,1.18730016]
[1768848791219,1.17438299,134.25,134.22,1.18730016]
[1768848792016,1.17438299,134.24,134.2,4.17300585]
[1768848792420,1.17438299,134.24,134.2,1.18730016]
[1768848792421,1.17438299,134.23,134.2,1.18730016]
[1768848792996,1.17438299,134.23,134.2,4.17300585]
[1768848793197,1.17438299,134.23,134.21,1.18730016]
[1768848800615,1.17438299,134.23,134.21,4.17257414]
[1768848802124,1.17438299,134.25,134.22,4.17257414]
[1768848802304,1.17438299,134.25,134.22,1.18730016]
[1768848803206,1.17438299,134.25,134.22,4.17257414]
[1768848806126,1.17438299,134.25,134.22,1.18730016]
[1768848811021,1.17438299,134.25,134.23,1.17110873]
[1768848812424,1.17438299,134.25,134.22,11.60681769]
[1768848818546,1.17438299,134.25,134.22,4.15638271]
[1768848818836,8.62319113,134.25,134.22,1.17110873]
[1768848819046,11.60846511,134.25,134.22,1.17110873]
[1768848819247,1.14983762,134.24,134.21,4.15638271]
[1768848820738,1.14983762,134.24,134.22,1.29047999]
[1768848833477,8.59922828,134.24,134.22,1.29047999]
[1768848835966,1.14983762,134.24,134.22,1.29047999]
[1768848844880,8.74208858,134.26,134.23,1.24142053]
[1768848845182,1.29341779,134.25,134.23,1.24142053]
[1768848845577,1.29341779,134.25,134.22,1.24142053]
[1768848845955,1.29341779,134.24,134.21,4.22669451]
[1768848846270,1.29341779,134.23,134.2,1.24142053]
[1768848847467,8.7433777,134.23,134.2,1.24142053]
[1768848849478,8.7433777,134.23,134.2,4.22669451]
[1768848849679,1.29341779,134.22,134.19,11.67869147]
[1768848849887,1.29341779,134.22,134.19,11.67881279]
[1768848857289,1.29341779,134.23,134.2,4.22669451]
[1768848858892,1.29341779,134.23,134.2,4.22703327]
[1768848859078,1.29341779,134.23,134.2,1.24142053]
[1768848859790,1.29341779,134.23,134.2,4.22703327]
[1768848861485,1.29341779,134.23,134.2,11.67855656]
[1768848874079,1.34339959,134.24,134.21,1.28006357]
[1768848874579,1.34339959,134.24,134.2,11.7171996]
[1768848877714,1.34339959,134.24,134.2,8.73158686]
[1768848880506,1.34339959,134.23,134.2,8.73158686]
[1768848882584,1.34339959,134.23,134.2,11.7171996]
[1768848882784,1.34339959,134.23,134.21,1.34192101]
[1768848883290,1.34339959,134.23,134.2,11.77905704]
[1768848888014,1.34339959,134.23,134.2,8.7934443]
[1768848888189,1.34339959,134.23,134.2,11.77905704]
[1768848889715,1.34339959,134.23,134.2,8.7934443]
[1768848900805,4.33074356,134.25,134.22,1.27923063]
[1768848901107,1.34513082,134.26,134.23,1.27923063]
[1768848901304,1.34513082,134.26,134.23,0.24964889]
[1768848902127,1.34513082,134.26,134.22,10.43591751]
[1768848902128,1.34513082,134.25,134.22,10.43591751]
[1768848903325,1.34513082,134.25,134.22,11.71514814]
[1768848905829,1.34513082,134.25,134.22,4.26484337]
[1768848908140,8.7940125,134.25,134.22,1.27923063]
[1768848910334,11.77962524,134.25,134.22,1.27923063]
[1768848910632,1.34513082,134.24,134.2,11.71614586]
[1768848911629,1.34513082,134.25,134.22,4.26484337]
[1768848915146,8.79403806,134.25,134.22,4.26484337]
[1768848920939,8.79403806,134.25,134.22,4.26381173]
[1768848931150,8.79403806,134.25,134.22,1.27923063]
[1768848931447,8.79403806,134.25,134.22,4.26381173]
[1768848932746,1.34513082,134.25,134.22,4.26381173]
[1768848935654,1.34513082,134.25,134.22,1.27923063]
[1768848935952,8.79405976,134.25,134.22,1.27923063]
[1768848936152,8.79405976,134.25,134.22,4.26381173]
[1768848951967,8.79405976,134.25,134.22,1.27923063]
[1768848952143,8.79405976,134.25,134.22,4.26381173]
[1768848954644,8.79405976,134.25,134.22,1.27923063]
[1768848954940,8.79405976,134.25,134.22,4.26381173]
[1768848955552,8.79405976,134.25,134.22,1.27923063]
[1768848955865,8.79405976,134.25,134.22,4.26381173]
[1768848960602,1.34513082,134.25,134.22,4.26381173]
[1768848974014,1.31611145,134.24,134.2,8.87989893]
[1768848974193,1.31611145,134.24,134.2,4.41320153]
[1768848974697,1.31611145,134.24,134.2,11.86470904]
[1768848975514,1.31611145,134.24,134.2,4.41320153]
[1768848977405,1.31611145,134.23,134.2,4.41320153]
[1768848977715,1.31611145,134.23,134.2,11.86465463]
[1768848977896,1.31611145,134.23,134.21,2.9845811]
[1768848980921,1.31611145,134.23,134.21,2.98505561]
[1768848982122,1.31611145,134.26,134.22,4.41367604]
[1768848982294,1.31611145,134.25,134.22,4.41367604]
[1768848983327,1.31611145,134.25,134.23,2.98505561]
[1768848992525,1.31611145,134.25,134.22,11.86396702]
[1768848996239,7.44880256,134.25,134.22,4.41367604]
[1768848996413,1.41648342,134.24,134.22,4.41367604]
[1768849000039,1.41648342,134.24,134.21,11.76275513]
[1768849003634,1.31860312,134.23,134.2,4.37461153]
[1768849004532,1.31860312,134.23,134.2,11.82616941]
[1768849004732,1.31860312,134.23,134.2,8.8411138]
[1768849006842,1.31860312,134.23,134.2,11.82616941]
[1768849009050,8.76855454,134.23,134.2,4.37461153]
[1768849010553,8.76855454,134.23,134.2,1.38955592]
[1768849010847,1.31860312,134.22,134.19,11.82664789]
[1768849012329,1.31860312,134.22,134.2,1.38955592]
[1768849012550,1.31860312,134.23,134.2,1.38955592]
[1768849015954,1.31860312,134.23,134.2,8.8410863]
[1768849022967,2.98505561,134.23,134.2,7.45153038]
[1768849023267,1.42198834,134.22,134.2,7.45153038]
[1768849029576,1.42198834,134.22,134.19,8.83903101]
[1768849029770,4.40704395,134.22,134.19,8.83903101]
[1768849031855,1.42198834,134.21,134.18,7.45243615]
[1768849032261,1.42198834,134.23,134.2,1.38706736]
[1768849036484,1.42198834,134.24,134.21,4.37212297]
[1768849036676,1.42198834,134.24,134.21,11.82292041]
[1768849038385,1.42198834,134.24,134.21,8.8378648]
[1768849039884,1.42198834,134.24,134.21,1.38706736]
[1768849040398,1.42198834,134.24,134.21,8.8380764]
[1768849040692,1.42198834,134.23,134.2,7.45131349]
[1768849040898,1.42198834,134.23,134.2,4.37212297]
[1768849041192,1.42198834,134.23,134.2,1.38706736]
[1768849041393,1.42198834,134.23,134.2,8.83858301]
[1768849043299,1.34192788,134.22,134.19,8.84200057]
[1768849045597,1.34192788,134.22,134.19,11.82731265]
[1768849046379,1.34192788,134.22,134.2,1.39007407]
[1768849052201,1.34192788,134.23,134.2,8.84159048]
[1768849055103,1.34192788,134.23,134.2,1.39007407]
[1768849062241,1.34192788,134.23,134.2,8.84158769]
[1768849063922,1.42001021,134.24,134.21,1.35672824]
[1768849064927,1.42001021,134.24,134.2,8.80824186]
[1768849069625,1.42001021,134.23,134.2,8.80824186]
[1768849072627,1.42001021,134.23,134.2,11.79355394]
[1768849077431,1.33205802,134.24,134.21,4.26571791]
[1768849077617,1.33205802,134.24,134.21,1.28040583]
[1768849081837,1.33205802,134.24,134.21,8.73138259]
[1768849083715,1.33205802,134.26,134.23,1.28040583]
[1768849084213,1.33205802,134.26,134.23,4.26571791]
[1768849085940,1.33205802,134.26,134.23,11.71554322]
[1768849094243,1.33205802,134.26,134.23,1.28040583]
[1768849096845,1.33205802,134.26,134.23,8.73026293]
[1768849097452,1.33205802,134.26,134.23,11.71557501]
[1768849104886,1.33205802,134.26,134.23,11.71418095]
[1768849113496,1.33205802,134.26,134.23,4.26432385]
[1768849122415,1.33205802,134.26,134.23,4.26432385]
[1768849122884,7.44791247,134.27,134.25,1.28093636]
[1768849123200,8.67416672,134.27,134.25,1.28093636]
[1768849123383,8.67416672,134.27,134.24,4.26485438]
[1768849123807,1.22625425,134.26,134.24,4.26485438]
[1768849123987,1.22625425,134.26,134.24,2.98391802]
[1768849126618,63.03207233,134.29,134.26,1.28093636]
[1768849126800,1.22625425,134.28,134.25,2.98391802]
[1768849128796,1.22625425,134.28,134.25,10.43266136]
[1768849129510,1.22625425,134.28,134.25,2.98391802]
[1768849131518,1.22625425,134.28,134.25,4.26485438]
[1768849135621,1.22625425,134.28,134.25,1.28093636]
[1768849145338,8.67339474,134.28,134.25,1.28093636]
[1768849169555,1.20684218,134.27,134.23,8.61834535]
[1768849169845,1.20684218,134.26,134.23,11.60167993]
[1768849170048,1.20684218,134.25,134.22,8.61881926]
[1768849170241,4.19017676,134.25,134.22,8.61881926]
[1768849170551,4.19017676,134.25,134.22,1.1686523]
[1768849170742,1.20684218,134.25,134.22,1.1686523]
[1768849171355,1.20684218,134.25,134.22,8.61906812]
[1768849171858,1.20684218,134.25,134.22,1.1686523]
[1768849174144,1.20684218,134.25,134.22,8.61905561]
[1768849183347,1.20684218,134.25,134.22,11.60239019]
[1768849183566,1.14684219,134.25,134.22,11.60239019]
[1768849185155,1.14684219,134.25,134.22,8.61905561]
[1768849192384,1.14684219,134.25,134.22,11.60239019]
[1768849193478,1.14684219,134.25,134.22,8.61905561]
[1768849193668,1.14684219,134.25,134.22,11.60239019]
[1768849200897,1.19359736,134.29,134.23,1.0892501]
[1768849201073,1.19359736,134.27,134.23,4.07258468]
[1768849202476,1.19359736,134.27,134.24,1.0892501]
[1768849202864,1.19359736,134.27,134.24,4.07258468]
[1768849203179,1.19359736,134.27,134.24,2.98333458]
[1768849204285,1.19359736,134.27,134.23,11.52199132]
[1768849204468,1.19359736,134.27,134.24,2.98333458]
[1768849206287,1.19359736,134.27,134.23,11.52199132]
[1768849207086,1.19359736,134.27,134.23,10.43274122]
[1768849207295,1.19359736,134.27,134.24,4.07258468]
[1768849207790,1.19359736,134.27,134.24,1.0892501]
[1768849207991,1.19359736,134.27,134.24,4.07258468]
[1768849208286,1.19359736,134.28,134.25,1.0892501]
[1768849208485,1.19359736,134.28,134.25,4.07258468]
[1768849210798,1.19359736,134.27,134.24,8.53844537]
[1768849210973,1.19359736,134.27,134.24,11.52177995]
[1768849217001,1.19359736,134.27,134.24,4.07258468]
[1768849220002,1.19359736,134.27,134.25,4.07258468]
[1768849221106,1.19359736,134.27,134.25,1.0892501]
[1768849222408,1.19359736,134.27,134.25,4.07258468]
[1768849223098,1.19359736,134.27,134.25,1.0892501]
[1768849227611,8.54418254,134.28,134.25,4.07248424]
[1768849230995,8.54418254,134.28,134.25,1.0892501]
[1768849231317,8.54418254,134.28,134.25,4.07248424]
[1768849232310,8.54418254,134.28,134.25,1.0892501]
[1768849233823,1.09694674,134.27,134.25,1.0892501]
[1768849235447,8.54418254,134.28,134.25,4.07248424]
[1768849235921,1.09694674,134.27,134.25,1.0892501]
[1768849236936,7.4472358,134.28,134.26,1.08118033]
[1768849238240,1.09694674,134.27,134.25,2.98323414]
[1768849239145,1.09694674,134.27,134.24,4.06441447]
[1768849241842,1.09694674,134.27,134.25,1.07815621]
[1768849242024,8.54934891,134.28,134.25,1.07815621]
[1768849242321,8.54934891,134.28,134.25,4.06139035]
[1768849242522,1.10194012,134.27,134.25,4.06139035]
[1768849246146,1.10194012,134.28,134.25,4.06139035]
[1768849247449,1.10194012,134.29,134.27,1.07815621]
[1768849247942,1.10194012,134.29,134.26,2.98323414]
[1768849248128,1.10194012,134.29,134.26,4.06139035]
[1768849249047,8.6476657,134.31,134.28,4.06139035]
[1768849249242,7.54572558,134.31,134.28,4.06139035]
[1768849249444,1.10194012,134.3,134.28,4.06139035]
[1768849249641,1.10194012,134.3,134.28,2.98323414]
[1768849252352,1.10194012,134.3,134.27,4.06139035]
[1768849252852,1.10194012,134.3,134.28,2.98323414]
[1768849253231,1.26992482,134.31,134.28,4.06375571]
[1768849253643,1.26992482,134.31,134.28,2.98323414]
[1768849253843,1.26992482,134.31,134.29,2.98323414]
[1768849254056,1.26992482,134.31,134.29,4.06375571]
[1768849258571,0.1,134.31,134.29,11.51030472]
[1768849258748,1.26992482,134.33,134.3,4.06375571]
[1768849259749,1.26992482,134.33,134.3,11.50959465]
[1768849259949,1.26992482,134.33,134.31,2.98323414]
[1768849260148,0.1,134.33,134.31,4.06375571]
[1768849260556,0.1,134.33,134.32,2.98323414]
[1768849260743,0.1,134.33,134.32,2.95323414]
[1768849260942,0.1,134.35,134.34,1.08052157]
[1768849261271,1.16992482,134.35,134.31,2.98323414]
[1768849261472,1.16992482,134.35,134.32,2.98323414]
[1768849261660,1.26992482,134.36,134.32,2.98323414]
[1768849262262,1.16992482,134.35,134.32,7.4448569]
[1768849262575,1.16992482,134.34,134.32,7.4448569]
[1768849262750,1.16992482,134.35,134.32,7.4448569]
[1768849263151,1.16992482,134.35,134.32,8.52537847]
[1768849269678,1.16992482,134.35,134.32,11.50861261]
[1768849270174,1.16992482,134.35,134.33,1.08052157]
[1768849275560,1.26992482,134.36,134.33,1.08052157]
[1768849275759,1.26992482,134.36,134.33,4.06375571]
[1768849276178,1.26992482,134.36,134.34,1.08052157]
[1768849278178,0.1,134.36,134.34,11.50731903]
[1768849279260,0.1,134.37,134.36,1.08052157]
[1768849279456,0.1,134.38,134.36,1.05052157]
[1768849279726,0.1,134.39,134.36,10.42592541]
[1768849279883,0.1,134.4,134.36,10.42592541]
[1768849280188,0.1,134.4,134.37,2.98323414]
[1768849280983,1.26992482,134.4,134.37,2.98323414]
[1768849281385,1.26992482,134.4,134.37,4.05166671]
[1768849282677,1.26992482,134.4,134.38,1.06897652]
[1768849282990,0.1,134.4,134.38,1.06897652]
[1768849292401,0.1,134.4,134.38,4.04619971]
[1768849292703,0.1,134.4,134.38,1.06897652]
[1768849295405,0.1,134.4,134.39,2.97722319]
[1768849295608,1.13805984,134.41,134.39,2.97722319]
[1768849299092,1.13805984,134.4,134.38,2.97722319]
[1768849303008,1.13805984,134.4,134.37,8.51970997]
[1768849303311,1.13805984,134.4,134.38,2.97722319]
[1768849306715,1.13805984,134.4,134.37,11.49693316]
[1768849310095,1.13805984,134.4,134.38,2.97722319]
[1768849310809,1.13805984,134.4,134.38,4.05988134]
[1768849311290,1.13805984,134.4,134.38,2.97722319]
[1768849312115,1.13805984,134.4,134.37,8.52501604]
[1768849312321,1.13805984,134.4,134.38,2.97722319]
[1768849314119,1.13805984,134.4,134.37,11.50223923]
[1768849314419,1.13805984,134.4,134.37,4.06174831]
[1768849315512,1.13805984,134.4,134.37,8.52656041]
[1768849315695,1.13805984,134.4,134.37,11.5037836]
[1768849320298,1.13805984,134.4,134.38,4.0638325]